bitfinex-derivatives/quotes_SOLF0:USTF0_20260203
["timestamp","ask_amount","ask_price","bid_price","bid_amount"]
[1770132787566,74.00347243,102.51,102.41,75.30361244]
[1770132787766,74.00347243,102.53,102.42,75.30361244]
[1770132787967,136.6887,102.51,102.42,75.30361244]
[1770132788162,210.70627243,102.5,102.38,75.30361244]
[1770132788367,74.00347243,102.47,102.38,75.30361244]
[1770132788973,74.00347243,102.47,102.31,136.95]
[1770132788974,324.35395278,102.46,102.34,75.30361244]
[1770132789866,74.00347243,102.44,102.34,75.30361244]
[1770132790069,74.00347243,102.42,102.3,75.30361244]
[1770132790470,99.05395278,102.4,102.3,75.30361244]
[1770132790768,324.65395278,102.4,102.3,75.30361244]
[1770132790975,74.00347243,102.39,102.26,75.30361244]
[1770132791172,161.88708035,102.4,102.29,75.30361244]
[1770132791173,25.05048035,102.4,102.29,75.30361244]
[1770132791368,161.88718035,102.4,102.29,75.30361244]
[1770132791675,74.00347243,102.38,102.25,75.30361244]
[1770132792272,74.00347243,102.38,102.27,75.30361244]
[1770132792472,74.00347243,102.36,102.24,75.30361244]
[1770132792667,299.94347243,102.36,102.24,75.30361244]
[1770132792977,161.92858035,102.37,102.24,75.30361244]
[1770132792978,226.0,102.35,102.24,75.30361244]
[1770132793173,226.0,102.35,102.25,75.30361244]
[1770132793571,74.00347243,102.38,102.27,75.30361244]
[1770132793768,74.00347243,102.36,102.27,75.30361244]
[1770132793967,25.05048035,102.37,102.27,75.30361244]
[1770132794180,437.01247243,102.39,102.27,75.30361244]
[1770132794373,74.00347243,102.36,102.23,75.30361244]
[1770132794571,210.89607243,102.36,102.23,75.30361244]
[1770132794775,74.00347243,102.35,102.23,75.30361244]
[1770132794973,74.00347243,102.33,102.23,75.30361244]
[1770132795675,136.8593,102.39,102.23,75.30361244]
[1770132795877,74.00347243,102.46,102.31,75.30361244]
[1770132796080,74.00347243,102.46,102.35,75.30361244]
[1770132796576,74.00347243,102.5,102.37,75.30361244]
[1770132796778,235.06347243,102.5,102.38,75.30361244]
[1770132796986,74.00347243,102.49,102.38,75.30361244]
[1770132797186,74.00347243,102.45,102.34,75.30361244]
[1770132797376,74.00347243,102.49,102.36,75.30361244]
[1770132797582,138.37129671,102.53,102.4,75.30361244]
[1770132797583,100.75254949,102.53,102.4,75.30361244]
[1770132797779,210.66607243,102.53,102.4,75.30361244]
[1770132797978,210.68017243,102.52,102.4,75.30361244]
[1770132798182,226.56,102.54,102.42,75.30361244]
[1770132798379,74.00347243,102.56,102.44,75.30361244]
[1770132798578,170.42938035,102.58,102.46,75.30361244]
[1770132798881,170.42938035,102.58,102.38,136.8508]
[1770132798882,161.54988035,102.66,102.52,75.30361244]
[1770132799081,25.05048035,102.66,102.55,75.30361244]
[1770132799281,332.0003,102.72,102.57,75.30361244]
[1770132799282,25.05048035,102.72,102.57,75.30361244]
[1770132799481,363.426,102.74,102.66,76.99951887]
[1770132799482,227.04,102.74,102.66,76.99951887]
[1770132799679,227.04,102.74,102.66,1.69590643]
[1770132799680,301.04347243,102.74,102.66,1.69590643]
[1770132799881,74.00347243,102.74,102.66,1.69590643]
[1770132800282,74.00347243,102.72,102.58,211.88811244]
[1770132800477,74.97535497,102.71,102.58,75.30361244]
[1770132800676,25.05048035,102.72,102.58,75.30361244]
[1770132800677,227.16,102.7,102.58,75.30361244]
[1770132801087,227.16,102.7,102.59,74.13562635]
[1770132801284,74.97535497,102.69,102.59,74.13562635]
[1770132801689,74.97535497,102.69,102.55,74.13562635]
[1770132801880,100.02583532,102.68,102.56,74.13562635]
[1770132802081,236.49563532,102.68,102.56,74.13562635]
[1770132802280,74.97535497,102.64,102.52,74.13562635]
[1770132802482,74.97535497,102.7,102.58,74.13562635]
[1770132802990,136.4002,102.73,102.58,74.13562635]
[1770132802991,25.05048035,102.73,102.61,74.13562635]
[1770132803285,250.49535497,102.74,102.63,74.13562635]
[1770132803677,74.97535497,102.7,102.59,74.13562635]
[1770132803878,100.02583532,102.73,102.6,74.13562635]
[1770132804176,74.97535497,102.72,102.6,74.13562635]
[1770132804375,161.45068035,102.73,102.56,463.83562635]
[1770132804376,74.97535497,102.69,102.56,463.83562635]
[1770132804580,136.4003,102.73,102.56,74.13562635]
[1770132804581,100.02583532,102.67,102.56,74.13562635]
[1770132804885,74.97535497,102.66,102.53,74.13562635]
[1770132805075,178.19048035,102.67,102.52,136.668]
[1770132805076,74.97535497,102.7,102.6,74.13562635]
[1770132805277,74.97535497,102.78,102.66,74.13562635]
[1770132806086,25.05048035,102.73,102.62,74.13562635]
[1770132806287,100.02583532,102.73,102.62,74.13562635]
[1770132806484,74.97535497,102.69,102.58,74.13562635]
[1770132806790,303.53535497,102.69,102.58,74.13562635]
[1770132806989,25.05048035,102.64,102.53,210.79532635]
[1770132807179,74.97535497,102.66,102.54,74.13562635]
[1770132807384,100.02583532,102.66,102.55,74.13562635]
[1770132808084,74.97535497,102.62,102.51,74.13562635]
[1770132808288,266.49535497,102.62,102.51,74.13562635]
[1770132808485,25.05048035,102.6,102.47,74.13562635]
[1770132808988,74.97535497,102.59,102.47,74.13562635]
[1770132809188,245.33535497,102.59,102.47,74.13562635]
[1770132809389,25.05048035,102.57,102.47,74.13562635]
[1770132809784,245.33535497,102.59,102.47,74.13562635]
[1770132810589,229.0,102.63,102.51,74.13562635]
[1770132812189,74.97535497,102.62,102.51,74.13562635]
[1770132812386,100.02583532,102.61,102.51,74.13562635]
[1770132812582,25.05048035,102.61,102.51,74.13562635]
[1770132812787,25.05048035,102.64,102.53,74.13562635]
[1770132813187,74.97535497,102.63,102.49,210.84832635]
[1770132813395,25.05048035,102.61,102.5,74.13562635]
[1770132813690,254.51048035,102.61,102.5,74.13562635]
[1770132814087,229.46,102.61,102.51,74.13562635]
[1770132814588,100.02583532,102.67,102.55,210.76902635]
[1770132814789,25.05048035,102.64,102.53,74.13562635]
[1770132814990,25.05048035,102.64,102.49,74.13562635]
[1770132814991,100.02583532,102.61,102.49,74.13562635]
[1770132815293,25.05048035,102.58,102.49,74.13562635]
[1770132816894,254.49048035,102.62,102.52,74.13562635]
[1770132817395,74.97535497,102.64,102.53,74.13562635]
[1770132817989,100.02583532,102.62,102.5,74.13562635]
[1770132818290,74.97535497,102.61,102.5,74.13562635]
[1770132818491,304.51535497,102.61,102.5,74.13562635]
[1770132818690,304.51535497,102.61,102.5,210.83622635]
[1770132818886,304.51535497,102.61,102.5,74.13562635]
[1770132819089,25.05048035,102.59,102.5,74.13562635]
[1770132819291,74.97535497,102.58,102.46,74.13562635]
[1770132819792,25.05048035,102.56,102.46,74.13562635]
[1770132820095,100.02583532,102.56,102.46,74.13562635]
[1770132820489,441.39295497,102.55,102.44,163.80980815]
[1770132820689,329.80583532,102.55,102.44,163.80980815]
[1770132820892,74.97535497,102.54,102.44,163.80980815]
[1770132821196,74.97535497,102.54,102.43,74.13562635]
[1770132821197,25.05048035,102.52,102.43,74.13562635]
[1770132821395,25.05048035,102.55,102.44,74.13562635]
[1770132821694,100.02583532,102.55,102.44,74.13562635]
[1770132821890,74.97535497,102.54,102.44,74.13562635]
[1770132822993,230.0,102.56,102.46,74.13562635]
[1770132823394,25.05048035,102.52,102.43,74.13562635]
[1770132823895,100.02583532,102.61,102.49,74.13562635]
[1770132824097,74.97535497,102.61,102.51,210.82342635]
[1770132824396,136.498,102.66,102.54,210.78362635]
[1770132824397,74.97535497,102.64,102.54,210.78362635]
[1770132824790,74.97535497,102.64,102.54,74.13562635]
[1770132825400,305.05535497,102.64,102.54,74.13562635]
[1770132825597,25.05048035,102.63,102.54,74.13562635]
[1770132825794,74.97535497,102.64,102.54,210.78362635]
[1770132825996,255.07048035,102.66,102.55,210.76972635]
[1770132826192,255.07048035,102.66,102.56,210.75582635]
[1770132826387,255.07048035,102.66,102.56,74.13562635]
[1770132826790,255.07048035,102.66,102.56,82.91812635]
[1770132826995,74.97535497,102.62,102.52,74.13562635]
[1770132827191,25.05048035,102.63,102.54,74.13562635]
[1770132827896,330.04583532,102.66,102.54,210.78362635]
[1770132828098,330.04583532,102.66,102.54,74.13562635]
[1770132828295,74.97535497,102.65,102.54,74.13562635]
[1770132828700,100.02583532,102.6,102.5,74.13562635]
[1770132828901,230.0,102.59,102.5,74.13562635]
[1770132829304,100.02583532,102.57,102.46,74.13562635]
[1770132829606,74.97535497,102.56,102.46,74.13562635]
[1770132829898,74.97535497,102.53,102.42,210.94132635]
[1770132830102,285.54583532,102.53,102.42,210.94132635]
[1770132830304,72.13819348,102.52,102.42,74.13562635]
[1770132830698,72.13819348,102.52,102.43,136.794]
[1770132831200,72.13819348,102.52,102.42,74.13562635]
[1770132831400,97.18867383,102.5,102.39,136.8437]
[1770132831599,97.18867383,102.5,102.4,136.8328]
[1770132831796,97.18867383,102.5,102.39,73.91440745]
[1770132831797,72.13819348,102.49,102.39,73.91440745]
[1770132832102,97.18867383,102.47,102.36,210.80230745]
[1770132832299,72.13819348,102.46,102.36,73.91440745]
[1770132832699,25.05048035,102.44,102.36,73.91440745]
[1770132832896,25.05048035,102.44,102.33,210.83380745]
[1770132833602,25.05048035,102.44,102.34,8.8012]
[1770132833912,74.95403696,102.4,102.29,73.07678932]
[1770132834204,25.05048035,102.38,102.29,73.07678932]
[1770132834408,100.00451731,102.38,102.29,73.07678932]
[1770132834801,229.98,102.4,102.3,210.04358932]
[1770132835002,229.98,102.4,102.32,73.07678932]
[1770132835205,229.98,102.4,102.3,136.9668]
[1770132835399,229.98,102.4,102.3,210.04358932]
[1770132835603,229.98,102.4,102.3,73.07678932]
[1770132836100,329.98451731,102.4,102.3,73.07678932]
[1770132836504,329.96451731,102.4,102.3,73.07678932]
[1770132836907,329.96451731,102.4,102.31,136.9548]
[1770132837110,329.96451731,102.4,102.3,73.07678932]
[1770132837406,329.96451731,102.4,102.28,218.86928932]
[1770132837407,74.95403696,102.39,102.28,218.86928932]
[1770132837608,74.95403696,102.39,102.29,136.9793]
[1770132838406,74.95403696,102.39,102.3,145.7694]
[1770132838608,74.95403696,102.39,102.3,218.84618932]
[1770132838809,74.95403696,102.39,102.3,81.88138932]
[1770132839005,74.95403696,102.39,102.3,218.84888932]
[1770132839305,74.95403696,102.39,102.3,218.84248932]
[1770132840102,25.05048035,102.38,102.28,8.8067]
[1770132840306,100.00451731,102.38,102.28,145.7956]
[1770132840609,74.95403696,102.37,102.26,73.07678932]
[1770132840810,25.05048035,102.32,102.23,210.13148932]
[1770132841008,179.11048035,102.32,102.23,210.13148932]
[1770132841206,74.95403696,102.31,102.22,137.0745]
[1770132841411,329.76451731,102.35,102.25,137.0345]
[1770132841611,74.95403696,102.33,102.22,137.0756]
[1770132841812,74.95403696,102.33,102.22,8.8116]
[1770132841813,25.05048035,102.32,102.22,8.8116]
[1770132842005,74.95403696,102.31,102.23,137.061]
[1770132842205,74.95403696,102.28,102.17,210.20828932]
[1770132842404,100.00451731,102.26,102.15,137.16]
[1770132842606,100.00451731,102.26,102.17,137.1417]
[1770132842811,74.95403696,102.25,102.15,137.16]
[1770132843007,25.05048035,102.26,102.17,137.1421]
[1770132843215,74.95403696,102.25,102.13,137.1954]
[1770132843410,74.95403696,102.22,102.12,73.07678932]
[1770132843608,25.05048035,102.23,102.08,210.32938932]
[1770132843609,74.95403696,102.19,102.08,210.32938932]
[1770132843805,74.95403696,102.19,102.12,137.2044]
[1770132844009,74.95403696,102.19,102.12,137.2096]
[1770132844206,25.05048035,102.17,102.08,210.33918932]
[1770132844408,263.44451731,102.17,102.09,137.2477]
[1770132844609,137.0203,102.27,102.12,137.2079]
[1770132844610,25.05048035,102.2,102.12,137.2079]
[1770132845015,255.27048035,102.23,102.15,137.1688]
[1770132845207,74.95403696,102.22,102.11,137.2229]
[1770132845414,230.38,102.21,102.12,146.0301]
[1770132845610,230.38,102.21,102.13,137.1959]
[1770132845810,74.95403696,102.22,102.13,137.1959]
[1770132846011,74.95403696,102.26,102.17,137.1414]
[1770132846215,74.95403696,102.26,102.17,210.21818932]
[1770132846422,74.95403696,102.26,102.16,137.1559]
[1770132846618,74.95403696,102.26,102.16,8.8167]
[1770132846813,100.00451731,102.25,102.16,137.1537]
[1770132847014,74.95403696,102.27,102.16,137.1537]
[1770132847315,25.05048035,102.25,102.17,137.143]
[1770132847519,25.05048035,102.29,102.19,73.07678932]
[1770132847818,74.95403696,102.3,102.2,210.17948932]
[1770132848215,74.95403696,102.3,102.16,210.22148932]
[1770132848417,333.6477,102.32,102.17,137.1427]
[1770132848418,100.00451731,102.28,102.17,137.1427]
[1770132848817,74.95403696,102.27,102.17,8.8159]
[1770132849011,74.95403696,102.27,102.18,137.1295]
[1770132849320,74.95403696,102.27,102.16,210.22148932]
[1770132849522,74.95403696,102.27,102.18,137.1287]
[1770132849728,74.95403696,102.24,102.15,137.1691]
[1770132850015,100.00451731,102.22,102.11,137.2212]
[1770132850212,100.00451731,102.22,102.12,137.209]
[1770132850416,91.73929236,102.22,102.12,137.209]
[1770132850611,91.73929236,102.22,102.12,8.8201]
[1770132850810,91.73929236,102.22,102.13,137.1944]
[1770132851015,16.7852554,102.22,102.14,137.1809]
[1770132851213,210.84,102.24,102.16,137.1557]
[1770132851611,210.84,102.24,102.14,137.1809]
[1770132851813,285.79403696,102.24,102.14,145.9993]
[1770132852122,74.95403696,102.22,102.12,137.2082]
[1770132852322,74.95403696,102.22,102.13,137.1946]
[1770132852621,74.95403696,102.22,102.12,137.2082]
[1770132852821,16.7852554,102.2,102.11,137.2113]
[1770132853019,74.95403696,102.22,102.13,137.1955]
[1770132853215,210.84,102.24,102.17,137.1405]
[1770132853419,91.73929236,102.26,102.16,137.1551]
[1770132853817,91.73929236,102.26,102.14,137.1743]
[1770132854014,16.7852554,102.23,102.13,210.27278932]
[1770132854417,74.95403696,102.26,102.15,210.24558932]
[1770132854418,91.73929236,102.26,102.15,210.24558932]
[1770132854618,91.73929236,102.23,102.12,137.1992]
[1770132854815,91.73929236,102.23,102.12,210.27598932]
[1770132855021,91.73929236,102.23,102.13,137.1965]
[1770132855225,91.73929236,102.23,102.12,210.27598932]
[1770132855424,91.73929236,102.23,102.12,81.89678932]
[1770132856326,91.73929236,102.2,102.1,8.8217]
[1770132856522,322.61929236,102.2,102.1,137.2318]
[1770132856728,322.61929236,102.2,102.12,137.2058]
[1770132856921,230.88,102.2,102.11,146.0444]
[1770132857125,230.88,102.2,102.11,137.2236]
[1770132857317,91.73929236,102.23,102.13,137.1964]
[1770132857524,91.73929236,102.23,102.11,210.30038932]
[1770132857724,91.73929236,102.23,102.12,137.2089]
[1770132857925,91.73929236,102.23,102.11,210.30038932]
[1770132858121,91.73929236,102.23,102.13,137.1962]
[1770132858322,91.73929236,102.23,102.14,137.1825]
[1770132858523,74.95403696,102.22,102.08,210.32918932]
[1770132858723,91.73929236,102.2,102.09,210.32618932]
[1770132858924,91.73929236,102.2,102.09,73.07678932]
[1770132859124,91.73929236,102.2,102.11,8.8213]
[1770132859422,74.95403696,102.2,102.11,210.29888932]
[1770132859823,91.73929236,102.2,102.08,210.33828932]
[1770132860020,91.73929236,102.2,102.09,137.25]
[1770132860222,91.73929236,102.2,102.11,8.8212]
[1770132860622,91.73929236,102.2,102.09,137.25]
[1770132860623,91.73929236,102.2,102.08,137.2615]
[1770132860825,91.73929236,102.2,102.1,8.8222]
[1770132861029,302.34853075,102.19,102.1,8.8222]
[1770132861225,231.22,102.19,102.12,8.8203]
[1770132861432,71.12853075,102.22,102.12,209.07920967]
[1770132861631,302.40853075,102.22,102.12,209.07920967]
[1770132862131,302.34853075,102.22,102.12,71.87090967]
[1770132862723,302.28853075,102.21,102.12,71.87090967]
[1770132862931,71.12853075,102.21,102.12,71.87090967]
[1770132863129,302.24853075,102.21,102.12,71.87090967]
[1770132863329,71.12853075,102.2,102.1,137.2356]
[1770132863529,71.12853075,102.2,102.09,71.87090967]
[1770132863724,231.12,102.19,102.1,71.87090967]
[1770132863929,16.7852554,102.21,102.12,209.07940967]
[1770132864429,87.91378615,102.21,102.12,71.87090967]
[1770132864621,319.01378615,102.21,102.12,71.87090967]
[1770132864819,87.91378615,102.21,102.12,71.87090967]
[1770132865023,318.95378615,102.21,102.12,71.87090967]
[1770132865927,319.15378615,102.21,102.12,80.69130967]
[1770132866123,87.91378615,102.21,102.12,80.69130967]
[1770132866327,231.18,102.2,102.12,80.69130967]
[1770132867533,302.68853075,102.19,102.1,8.8215]
[1770132867929,87.91378615,102.18,102.09,8.8231]
[1770132868130,87.91378615,102.18,102.08,209.13410967]
[1770132868327,71.12853075,102.18,102.09,209.11870967]
[1770132868730,71.12853075,102.18,102.1,209.10690967]
[1770132869132,71.12853075,102.18,102.1,71.87090967]
[1770132869334,71.12853075,102.18,102.07,71.87090967]
[1770132869335,71.12853075,102.17,102.07,71.87090967]
[1770132869531,71.12853075,102.17,102.05,137.2953]
[1770132869837,71.12853075,102.17,102.05,209.16620967]
[1770132870136,71.12853075,102.17,102.06,209.16040967]
[1770132870137,231.62,102.16,102.06,209.16040967]
[1770132870434,231.7,102.16,102.09,8.8231]
[1770132870631,71.12853075,102.2,102.12,137.2097]
[1770132870929,257.29378615,102.24,102.15,71.87090967]
[1770132871134,71.12853075,102.23,102.14,8.818]
[1770132871334,71.12853075,102.23,102.13,137.1905]
[1770132871335,71.12853075,102.23,102.13,209.06140967]
[1770132872032,71.12853075,102.23,102.13,80.68990967]
[1770132872227,71.12853075,102.23,102.13,209.06670967]
[1770132872431,240.50853075,102.24,102.15,71.87090967]
[1770132872733,240.50853075,102.24,102.15,80.68890967]
[1770132873131,240.50853075,102.24,102.13,137.1958]
[1770132873132,87.91378615,102.23,102.13,8.8191]
[1770132873329,87.91378615,102.23,102.12,71.87090967]
[1770132873330,16.7852554,102.19,102.09,209.11020967]
[1770132873737,242.01378615,102.19,102.1,8.8223]
[1770132874037,71.12853075,102.18,102.09,71.87090967]
[1770132875128,16.7852554,102.16,102.06,209.15780967]
[1770132875340,16.7852554,102.16,102.07,71.87090967]
[1770132876744,87.91378615,102.13,102.04,71.87090967]
[1770132876947,319.47378615,102.13,102.04,80.69820967]
[1770132877244,16.7852554,102.14,102.05,209.17480967]
[1770132877539,302.66853075,102.16,102.07,8.8247]
[1770132877744,302.66853075,102.16,102.06,71.87090967]
[1770132877940,3.72088262,102.19,102.1,209.10260967]
[1770132878140,16.7852554,102.22,102.13,137.1915]
[1770132878336,6.57001831,102.25,102.16,137.1501]
[1770132878536,6.57001831,102.29,102.2,137.1023]
[1770132878742,6.57001831,102.33,102.19,137.116]
[1770132878743,81.43125195,102.33,102.24,137.049]
[1770132878942,77.69854906,102.33,102.25,145.8443]
[1770132879241,6.57001831,102.29,102.2,208.96160967]
[1770132879542,6.57001831,102.27,102.2,71.87090967]
[1770132880137,6.57001831,102.27,102.17,71.87090967]
[1770132880138,6.57001831,102.25,102.17,71.87090967]
[1770132880336,87.89876492,102.27,102.17,71.87090967]
[1770132880734,87.89876492,102.27,102.15,217.85050967]
[1770132881045,87.89876492,102.27,102.17,80.68670967]
[1770132881339,87.89876492,102.27,102.17,71.87090967]
[1770132881745,16.77023417,102.24,102.13,217.88400967]
[1770132881947,16.77023417,102.24,102.15,209.04070967]
[1770132882141,3.62584265,102.28,102.15,209.04070967]
[1770132882142,87.89876492,102.27,102.16,209.02380967]
[1770132882343,87.89876492,102.27,102.16,71.87090967]
[1770132882543,87.89876492,102.27,102.16,209.02640967]
[1770132882943,87.89876492,102.27,102.17,217.82750967]
[1770132883150,87.89876492,102.27,102.17,80.68690967]
[1770132883843,87.89876492,102.27,102.17,71.87090967]
[1770132884146,16.77023417,102.24,102.14,71.87090967]
[1770132884341,16.77023417,102.24,102.14,217.87180967]
[1770132884546,16.77023417,102.27,102.16,71.87090967]
[1770132884744,20.39607682,102.3,102.19,71.87090967]
[1770132885048,20.39607682,102.3,102.19,208.98530967]
[1770132885244,3.62584265,102.33,102.24,71.87090967]
[1770132885441,71.12853075,102.34,102.24,71.87090967]
[1770132885643,71.12853075,102.34,102.25,208.90500967]
[1770132885840,71.12853075,102.35,102.22,208.94630967]
[1770132886045,74.7543734,102.35,102.23,71.87090967]
[1770132886643,71.12853075,102.34,102.23,71.87090967]
[1770132886847,71.12853075,102.34,102.23,217.74270967]
[1770132887051,246.79876492,102.36,102.25,71.87090967]
[1770132887253,87.89876492,102.36,102.26,71.87090967]
[1770132887951,71.12853075,102.35,102.23,71.87090967]
[1770132888354,87.89876492,102.33,102.23,71.87090967]
[1770132888847,87.89876492,102.3,102.19,80.68490967]
[1770132889153,16.77023417,102.27,102.19,71.87090967]
[1770132889349,248.35023417,102.27,102.19,71.87090967]
[1770132889549,16.77023417,102.27,102.19,71.87090967]
[1770132889750,87.89876492,102.27,102.16,71.87090967]
[1770132889956,302.76853075,102.26,102.16,71.87090967]
[1770132890851,74.77564743,102.25,102.16,71.87090967]
[1770132891045,16.77023417,102.24,102.14,211.68103796]
[1770132891245,16.77023417,102.24,102.14,74.49783796]
[1770132892053,16.77023417,102.24,102.15,74.49783796]
[1770132892254,16.77023417,102.24,102.15,83.31563796]
[1770132892453,91.5458816,102.24,102.15,74.49783796]
[1770132892651,91.5458816,102.24,102.13,74.49783796]
[1770132892652,16.77023417,102.23,102.13,74.49783796]
[1770132893152,231.34,102.22,102.13,83.31703796]
[1770132893848,231.34,102.22,102.11,8.8211]
[1770132893849,74.54033299,102.21,102.11,8.8211]
[1770132894052,231.34,102.22,102.1,72.27091672]
[1770132894053,322.73056716,102.2,102.1,72.27091672]
[1770132894245,74.54033299,102.19,102.1,72.27091672]
[1770132895546,74.54033299,102.19,102.1,81.09301672]
[1770132896850,3.62584265,102.22,102.11,209.49111672]
[1770132896851,305.86033299,102.22,102.11,209.49111672]
[1770132897247,305.86033299,102.22,102.13,81.09041672]
[1770132897452,74.54033299,102.22,102.13,209.46541672]
[1770132897851,74.54033299,102.22,102.14,137.1832]
[1770132898051,74.54033299,102.25,102.14,209.45411672]
[1770132898246,74.54033299,102.25,102.15,209.43851672]
[1770132898452,306.00033299,102.25,102.15,209.43851672]
[1770132898653,306.00033299,102.25,102.16,8.8169]
[1770132898854,74.54033299,102.25,102.16,8.8169]
[1770132899050,306.02033299,102.25,102.16,8.8169]
[1770132899256,74.54033299,102.24,102.15,72.27091672]
[1770132899457,20.39607682,102.26,102.16,137.1561]
[1770132899458,78.1642674,102.26,102.16,137.1561]
[1770132899659,74.54033299,102.25,102.15,209.43761672]
[1770132899861,74.54033299,102.25,102.14,8.8187]
[1770132900154,74.54033299,102.25,102.12,209.47411672]
[1770132900155,74.54033299,102.23,102.12,209.47411672]
[1770132900357,231.5,102.22,102.12,209.47411672]
[1770132900658,94.9344195,102.26,102.16,209.42711672]
[1770132900854,74.54033299,102.25,102.13,209.46621672]
[1770132901056,74.54033299,102.22,102.12,8.8201]
[1770132901357,231.48,102.21,102.12,8.8201]
[1770132901656,231.48,102.21,102.13,8.8196]
[1770132901953,91.31056716,102.2,102.09,72.27091672]
[1770132902147,91.31056716,102.17,102.06,8.8251]
[1770132902349,91.31056716,102.17,102.05,137.304]
[1770132902553,74.54033299,102.15,102.05,209.57491672]
[1770132902954,74.54033299,102.15,102.06,8.8256]
[1770132903450,74.54033299,102.15,102.05,72.27091672]
[1770132903656,91.31056716,102.14,102.02,209.60681672]
[1770132903860,74.54033299,102.12,102.02,209.60681672]
[1770132904154,74.54033299,102.15,102.05,72.27091672]
[1770132904361,212.07056716,102.18,102.09,72.27091672]
[1770132904556,74.54033299,102.18,102.09,72.27091672]
[1770132904953,228.44086716,102.18,102.06,72.27091672]
[1770132905157,306.12033299,102.17,102.08,209.53461672]
[1770132905362,91.31056716,102.21,102.1,72.27091672]
[1770132905555,74.54033299,102.19,102.07,209.54751672]
[1770132905754,74.54033299,102.17,102.07,72.27091672]
[1770132905958,74.54033299,102.16,102.07,72.27091672]
[1770132906355,74.54033299,102.16,102.06,8.825]
[1770132906763,74.54033299,102.14,102.04,81.09781672]
[1770132907059,74.54033299,102.14,102.02,209.61151672]
[1770132907452,248.51023417,102.15,102.02,72.27091672]
[1770132907453,91.31056716,102.12,102.02,72.27091672]
[1770132908055,91.31056716,102.12,102.03,8.8282]
[1770132908261,91.31056716,102.12,102.02,72.27091672]
[1770132908462,91.31056716,102.09,101.99,72.27091672]
[1770132908661,137.1873,102.14,101.92,72.27091672]
[1770132908662,74.54033299,102.02,101.92,72.27091672]
[1770132908963,231.66,102.01,101.92,72.27091672]
[1770132909256,74.54033299,102.02,101.93,72.27091672]
[1770132909454,74.54033299,102.02,101.9,209.77581672]
[1770132909654,16.77023417,102.0,101.9,72.27091672]
[1770132909864,16.77023417,102.0,101.88,137.5252]
[1770132909865,91.31056716,102.0,101.91,72.27091672]
[1770132910158,91.31056716,102.03,101.93,72.27091672]
[1770132910359,74.54033299,102.03,101.94,72.27091672]
[1770132910563,306.16033299,102.05,101.95,72.27091672]
[1770132910767,74.54033299,102.04,101.95,209.70891672]
[1770132911058,99.80190033,102.07,101.97,209.68191672]
[1770132911357,99.80190033,102.07,101.97,81.10411672]
[1770132911555,99.80190033,102.07,101.97,72.27091672]
[1770132911752,74.54033299,102.06,101.97,72.27091672]
[1770132912258,74.54033299,102.09,101.99,209.65541672]
[1770132912558,238.36033299,102.12,102.01,209.62631672]
[1770132913158,74.54033299,102.15,102.06,209.56041672]
[1770132913362,74.54033299,102.15,102.06,72.27091672]
[1770132913559,74.54033299,102.15,102.04,81.09801672]
[1770132913764,99.80190033,102.14,102.04,81.09801672]
[1770132913959,99.80190033,102.14,102.04,72.27091672]
[1770132914265,331.38190033,102.14,102.04,72.27091672]
[1770132914760,74.54033299,102.13,102.01,209.61781672]
[1770132914954,74.54033299,102.1,101.98,209.65871672]
[1770132915159,74.54033299,102.1,102.0,209.63931672]
[1770132915863,74.54033299,102.1,102.0,81.10151672]
[1770132916058,25.26156734,102.11,101.95,940.7187]
[1770132916059,74.54033299,102.07,101.96,72.27091672]
[1770132916260,306.06033299,102.06,101.96,209.69581672]
[1770132916461,25.26156734,102.09,101.99,209.65491672]
[1770132916661,25.26156734,102.09,102.0,72.27091672]
[1770132916864,74.54033299,102.08,101.97,209.68261672]
[1770132917163,74.54033299,102.08,101.98,218.50031672]
[1770132917464,74.54033299,102.08,101.98,81.10321672]
[1770132917763,74.54033299,102.08,101.98,72.27091672]
[1770132919065,74.54033299,102.08,101.99,72.27091672]
[1770132919965,74.54033299,102.08,101.99,81.10241672]
[1770132920166,74.54033299,102.08,101.99,72.27091672]
[1770132920558,74.54033299,102.08,101.96,209.61567943]
[1770132920861,75.09185624,102.05,101.96,72.19077943]
[1770132921458,25.26156734,102.06,101.97,209.60127943]
[1770132921663,75.09185624,102.08,101.98,72.19077943]
[1770132922063,75.09185624,102.08,101.98,218.42117943]
[1770132922261,75.09185624,102.08,101.99,72.19077943]
[1770132922463,75.09185624,102.08,101.99,209.57527943]
[1770132922667,256.56156734,102.09,102.0,72.19077943]
[1770132922668,331.65342358,102.09,102.0,72.19077943]
[1770132922965,75.09185624,102.08,101.97,72.19077943]
[1770132923562,75.09185624,102.08,101.97,81.02397943]
[1770132923859,75.09185624,102.08,101.99,72.19077943]
[1770132924364,75.09185624,102.08,101.99,218.40387943]
[1770132924571,75.09185624,102.08,101.99,72.19077943]
[1770132925468,75.09185624,102.08,101.97,72.19077943]
[1770132926368,75.09185624,102.08,101.98,72.19077943]
[1770132926858,100.35342358,102.06,101.95,72.19077943]